{"text_format":"1","workbook":"xlsx","n_sheets":6,"sheets":["Synthèse","Subventions 2017","Subs 2016 et demande 2017","Subs 2016 sans demande 2017","Nouvelles demandes 2017","Feuil2"],"not_rendered":{"charts":0,"images":0,"macros":0,"external_links":0,"defined_names":0,"comments":0,"pivot_tables":0},"unopened":[],"bounds":{"document_bytes":16777216,"sheet_cells":100000,"rows_first":2000,"rows_last":500,"rows_between":2000,"halvings":0,"cell_chars":16384,"cell_head_chars":4096},"cells_cut":0,"cells_raw":0,"read":"whole","date_system":"1900"}

{"sheet":"Synthèse","index":0,"n_rows":26,"n_cols":10,"rows_kept":26,"cut":false,"hidden":false,"merged":[[25,0,26,9],[0,0,2,9],[11,4,11,5],[12,2,12,7],[16,0,17,0],[16,1,17,1],[18,0,19,0],[18,1,19,1],[19,7,19,8],[20,8,20,9],[24,0,24,9],[4,0,6,6],[4,7,6,9]]}
["Commission Sport - Vie Associative"]
[]
[]
[]
["SYNTHÈSE SUBVENTIONS AUX ASSOCIATIONS",null,null,null,null,null,null,2017]
[]
[]
[]
["Associations locales","Associations extérieures","Sub 2013","Sub 2014","Sub 2015","Sub 2016","Demande 2017","Solde de banque ass. locales","Solde de banque ass. extérieures1","Proposition 2017"]
[{"$f":"COUNTA('Subventions 2017'!C2:C57)","v":50},{"$f":"COUNTA('Subventions 2017'!D2:D57)","v":6},{"$f":"SUM('Subventions 2017'!E58)","v":86362},{"$f":"SUM('Subventions 2017'!F58)","v":103430},{"$f":"SUM('Subventions 2017'!G58)","v":94550},{"$f":"SUM('Subventions 2017'!H58)","v":105056.5},{"$f":"SUM('Subventions 2017'!I58)","v":0},{"$f":"SUM('Subventions 2017'!J58)","v":361463.53999999992},{"$f":"SUM('Subventions 2017'!K58)","v":52496.87},{"$f":"SUM('Subventions 2017'!L58)","v":0}]
[]
[]
[null,null,"VARIATION PROPOSITION 2017 / SUBVENTION 2016 :",null,null,null,null,null,{"$f":"J10-G10","v":0}]
[]
[]
["Récapitulatif des membres des associations",null,null,null,null,null,null,"Subventions exceptionnelles :"]
["Total adhérents2",null,null,null,null,null,null,null,"- "]
[null,null,null,null,null,null,null,null,"- "]
["Total Ville3",null,null,null,null,null,null,null,"- "]
[null,null,null,null,null,null,null,"TOTAL :",null,{"$f":"H17-J17-J18-J19","v":0}]
[null,null,null,null,null,null,null,"Soit",{"$f":"SUM(J20-G10)&\"€ par rapport à \"&(H5-1)","v":"0€ par rapport à 2016"}]
[]
[]
["1 Le solde des associations extérieures ne représente pas la réalité. En effet, les fédérations ou unions présentent des soldes supérieurs de plusieurs centaines de milliers d'€."]
["2 Prend en compte l'ensemble des membres des associations ayant fait une demande de subvention en 2016."]
["3 Toutes les associations n'ayant pas nécessairement complétée la partie concernant les adhérents de la ville. il est à noter qu'il manque des rochechouartais. Aussi, les habitants étant très investis dans les associations, une personne a pu être compter plusieurs fois (dans chacune des associations pour laquelle elle adhère)."]

{"sheet":"Subventions 2017","index":1,"n_rows":61,"n_cols":15,"rows_kept":61,"cut":false,"hidden":false,"merged":[]}
["Type de demande","Catégorie","Associations locales","Associations extérieures","Sub 2013","Sub 2014","Sub 2015","Sub 2016","Demande 2017","Solde de banque ass. locales","Solde de banque ass. extérieures","Proposition 2017","Avis de la Commision","Total adhérents","Adhérents Ville"]
["Associations subventionnées en 2016 avec demande 2017","Animation","Comité des fêtes",null,12000,17000,16500,16500,null,15000,null,null,null,10,6]
["Associations subventionnées en 2016 avec demande 2017","Divers",null,"Transports Éducatifs de l'Enseignement Public (Adateep)",200,null,300,300,null,null,10487.24,null,null,3566]
["Associations subventionnées en 2016 sans demande 2017","Animation","Association des Collectionneurs",null,1000,1500,1200,1200,null,4570.6000000000004,null,null,null,32,5]
["Associations subventionnées en 2016 sans demande 2017","Animation","Comité de Jumelage",null,4200,4000,4000,4000,null,10933.99,null,null,null,56]
["Associations subventionnées en 2016 sans demande 2017","Animation","La Brêche",null,null,1500,1400,1400,null,190,null,null,null,15,0]
["Associations subventionnées en 2016 sans demande 2017","Animation","La Gerbe",null,500,500,300,800,null,6857.49,null,null,null,16,16]
["Associations subventionnées en 2016 sans demande 2017","Animation","Tout en Art",null,null,1000,1500,300,null,2802.86,null,null,null,10,1]
["Associations subventionnées en 2016 sans demande 2017","Culture","Amis Ecole de Musique et Danse",null,null,1400,200,200,null,5003.91,null,null,null,43,35]
["Associations subventionnées en 2016 sans demande 2017","Culture","Cantique",null,300,300,200,200,null,3530.02,null,null,null,52,6]
["Associations subventionnées en 2016 sans demande 2017","Culture","Chorale Philomèle",null,300,300,200,0]
["Associations subventionnées en 2016 sans demande 2017","Culture","Graine d'Art",null,null,300,300,200,null,795.55,null,null,null,10,6]
["Associations subventionnées en 2016 sans demande 2017","Culture","Interlingua",null,300,300,200,300,null,147.66999999999999,null,null,null,28,14]
["Associations subventionnées en 2016 sans demande 2017","Culture","La Châtelaine",null,2000,2000,1500,3500,null,20509.07,null,null,null,84,25]
["Associations subventionnées en 2016 sans demande 2017","Culture","Learning Together",null,300,500,300,300,null,3221.66,null,null,null,100,45]
["Associations subventionnées en 2016 sans demande 2017","Culture","Météorythmes",null,200,200,200,200,null,5273.09,null,null,null,11,0]
["Associations subventionnées en 2016 sans demande 2017","Culture","Olympes",null,8700,8700,8600,8900,null,27089]
["Associations subventionnées en 2016 sans demande 2017","Culture","OT",null,null,3820,null,3076.5]
["Associations subventionnées en 2016 sans demande 2017","Culture","Pierre de Lune",null,null,null,null,250,null,11426,null,null,null,62,35]
["Associations subventionnées en 2016 sans demande 2017","Culture","Arts Loisirs Créations",null,400,400,300,300,null,1225,null,null,null,50,42]
["Associations subventionnées en 2016 avec demande 2017","Divers","ACPG (Anciens Combattants - CATM)",null,200,200,100,100,null,2749,null,null,null,26]
["Associations subventionnées en 2016 sans demande 2017","Divers","Amicale des Personnels",null,8000,9840,7500,7500,null,5000,null,null,null,100]
["Associations subventionnées en 2016 sans demande 2017","Divers","Club Amitié & Loisirs",null,500,500,300,300,null,5836]
["Associations subventionnées en 2016 sans demande 2017","Divers","Coopérative Scolaire - Collège",null,700,1200,500,500,null,10060.709999999999]
["Associations subventionnées en 2016 sans demande 2017","Divers","Coopérative Scolaire - Ecole Elémentaire",null,9922,8970,9500,8970,null,23777.84,null,null,null,207,195]
["Associations subventionnées en 2016 sans demande 2017","Divers","Coopérative Scolaire - Ecole Maternelle",null,1090,1000,1000,1000,null,5507.39]
["Associations subventionnées en 2016 sans demande 2017","Divers","Fédération des Chasseurs (ACCA)",null,500,500,300,300,null,23183.33,null,null,null,92]
["Associations subventionnées en 2016 sans demande 2017","Divers","Les Amis des Fleurs",null,400,400,300,300,null,2473.6,null,null,null,180]
["Associations subventionnées en 2016 sans demande 2017","Divers","Moto Club Les Vasions",null,null,300,200,200,null,4453.82,null,null,null,45]
["Associations subventionnées en 2016 sans demande 2017","Divers","Personne handicapées, victimes du travail (FNATH)",null,400,400,300,200,null,null,null,null,null,90]
["Associations subventionnées en 2016 sans demande 2017","Divers",null,"PEP 87 (Pupilles)",150,150,50,50,null,null,1947.34]
["Associations subventionnées en 2016 sans demande 2017","Santé","Association des Donneurs de Sang",null,700,700,700,700,null,1914.64]
["Associations subventionnées en 2016 sans demande 2017","Santé","Vie Libre",null,150,150,100,100,null,15027.27,null,null,null,64,3]
["Associations subventionnées en 2016 sans demande 2017","Solidarité - Prévention","Ligue des Droits de l'Homme",null,300,300,200,200,null,3319.15,null,null,null,13,7]
["Associations subventionnées en 2016 sans demande 2017","Solidarité - Prévention","Secours Catholique Rochechouartais",null,1200,1200,1000,1000]
["Associations subventionnées en 2016 sans demande 2017","Solidarité - Prévention","Secours Populaire Français",null,1200,1200,1000,1000]
["Associations subventionnées en 2016 sans demande 2017","Solidarité - Prévention",null,"Etablissement, Service d'Aide par le Travail (ESAT)",1300,1300,1000,1000,null,null,22389.43,null,null,60,12]
["Associations subventionnées en 2016 sans demande 2017","Solidarité - Prévention",null,"Pouce Travail",150,150,150,150,null,null,null,null,null,17,3]
["Associations subventionnées en 2016 sans demande 2017","Solidarité - Prévention",null,"Prévention Routière 87",200,200,100,100,null,null,4353.8599999999997,null,null,851,11]
["Associations subventionnées en 2016 sans demande 2017","Solidarité - Prévention",null,"Service de portage de repas Croix Rouge ",null,0,0,5000,null,null,13319,null,null,56,38]
["Associations subventionnées en 2016 sans demande 2017","Sport","Association sportive du Collège",null,700,700,500,500,null,1480.52,null,null,null,81,81]
["Associations subventionnées en 2016 sans demande 2017","Sport","Ball Trap Club",null,300,400,300,300,null,6325.99,null,null,null,42,3]
["Associations subventionnées en 2016 sans demande 2017","Sport","Gym Bien-Être",null,200,200,150,200,null,101.97,null,null,null,30,21]
["Associations subventionnées en 2016 sans demande 2017","Sport","La Truite",null,0,800,600,600,null,10711.57,null,null,null,343]
["Associations subventionnées en 2016 sans demande 2017","Sport","Leg Hand",null,0,0,null,0]
["Associations subventionnées en 2016 sans demande 2017","Sport","Pétanque Populaire",null,600,600,800,800,null,7349.57,null,null,null,61]
["Associations subventionnées en 2016 sans demande 2017","Sport","Quad ROMC",null,1500,2500,500,2000,null,2583.35,null,null,null,29,6]
["Associations subventionnées en 2016 sans demande 2017","Sport","Handball",null,12000,12000,12000,12000,null,48882,null,null,null,346,69]
["Associations subventionnées en 2016 sans demande 2017","Sport","ROC Athlétisme",null,500,600,900,700,null,2987.97,null,null,null,40,32]
["Associations subventionnées en 2016 sans demande 2017","Sport","ROC Cyclo",null,800,800,5900,5600,null,13648.7,null,null,null,111,51]
["Associations subventionnées en 2016 sans demande 2017","Sport","ROC Danse de salon",null,400,400,300,300,null,5558,null,null,null,45,25]
["Associations subventionnées en 2016 sans demande 2017","Sport","ROC Football",null,3000,3500,3000,3560,null,20338.41,null,null,null,127,126]
["Associations subventionnées en 2016 sans demande 2017","Sport","ROC Gym",null,500,500,null,0]
["Associations subventionnées en 2016 sans demande 2017","Sport","ROC Judo",null,4500,4500,4500,4500,null,1800,null,null,null,53,34]
["Associations subventionnées en 2016 sans demande 2017","Sport","ROC Omnisports",null,1000,1000,1200,1200,null,2870.35,null,null,null,21]
["Associations subventionnées en 2016 sans demande 2017","Sport","ROC Tennis",null,2500,2100,2000,1800,null,14551.44,null,null,null,54,44]
["Associations subventionnées en 2016 sans demande 2017","Sport","ROC Volley Ball",null,400,450,400,400,null,395.04,null,null,null,14,4]
[null,null,null,null,{"$f":"SUM(E2:E57)","v":86362},103430,94550,105056.5,0,361463.53999999992,52496.87,0]
[]
[null,null,"Total asso. Locales","Total asso. Extérieures"]
[null,null,{"$f":"COUNTA(C2:C57)","v":50},{"$f":"COUNTA(D2:D57)","v":6}]

{"sheet":"Subs 2016 et demande 2017","index":2,"n_rows":6,"n_cols":14,"rows_kept":6,"cut":false,"hidden":false,"merged":[[0,0,2,13],[4,0,4,13]]}
[{"$f":"Synthèse!A1","v":"Commission Sport - Vie Associative"}]
[]
[]
[]
[{"$f":"Feuil2!A1","v":"Associations subventionnées en 2016 avec demande 2017"}]
[{"$f":"'Subventions 2017'!B1","v":"Catégorie"},{"$f":"'Subventions 2017'!C1","v":"Associations locales"},{"$f":"'Subventions 2017'!D1","v":"Associations extérieures"},{"$f":"'Subventions 2017'!E1","v":"Sub 2013"},{"$f":"'Subventions 2017'!F1","v":"Sub 2014"},{"$f":"'Subventions 2017'!G1","v":"Sub 2015"},{"$f":"'Subventions 2017'!H1","v":"Sub 2016"},{"$f":"'Subventions 2017'!I1","v":"Demande 2017"},{"$f":"'Subventions 2017'!J1","v":"Solde de banque ass. locales"},{"$f":"'Subventions 2017'!K1","v":"Solde de banque ass. extérieures"},{"$f":"'Subventions 2017'!L1","v":"Proposition 2017"},{"$f":"'Subventions 2017'!M1","v":"Avis de la Commision"},{"$f":"'Subventions 2017'!N1","v":"Total adhérents"},{"$f":"'Subventions 2017'!O1","v":"Adhérents Ville"}]

{"sheet":"Subs 2016 sans demande 2017","index":3,"n_rows":6,"n_cols":14,"rows_kept":6,"cut":false,"hidden":false,"merged":[[0,0,2,13],[4,0,4,13]]}
[{"$f":"Synthèse!A1","v":"Commission Sport - Vie Associative"}]
[]
[]
[]
[{"$f":"Feuil2!A1","v":"Associations subventionnées en 2016 avec demande 2017"}]
[{"$f":"'Subventions 2017'!B1","v":"Catégorie"},{"$f":"'Subventions 2017'!C1","v":"Associations locales"},{"$f":"'Subventions 2017'!D1","v":"Associations extérieures"},{"$f":"'Subventions 2017'!E1","v":"Sub 2013"},{"$f":"'Subventions 2017'!F1","v":"Sub 2014"},{"$f":"'Subventions 2017'!G1","v":"Sub 2015"},{"$f":"'Subventions 2017'!H1","v":"Sub 2016"},{"$f":"'Subventions 2017'!I1","v":"Demande 2017"},{"$f":"'Subventions 2017'!J1","v":"Solde de banque ass. locales"},{"$f":"'Subventions 2017'!K1","v":"Solde de banque ass. extérieures"},{"$f":"'Subventions 2017'!L1","v":"Proposition 2017"},{"$f":"'Subventions 2017'!M1","v":"Avis de la Commision"},{"$f":"'Subventions 2017'!N1","v":"Total adhérents"},{"$f":"'Subventions 2017'!O1","v":"Adhérents Ville"}]

{"sheet":"Nouvelles demandes 2017","index":4,"n_rows":6,"n_cols":14,"rows_kept":6,"cut":false,"hidden":false,"merged":[[0,0,2,13],[4,0,4,13]]}
[{"$f":"Synthèse!A1","v":"Commission Sport - Vie Associative"}]
[]
[]
[]
[{"$f":"Feuil2!A3","v":"Nouvelles demandes 2017"}]
[{"$f":"'Subventions 2017'!B1","v":"Catégorie"},{"$f":"'Subventions 2017'!C1","v":"Associations locales"},{"$f":"'Subventions 2017'!D1","v":"Associations extérieures"},{"$f":"'Subventions 2017'!E1","v":"Sub 2013"},{"$f":"'Subventions 2017'!F1","v":"Sub 2014"},{"$f":"'Subventions 2017'!G1","v":"Sub 2015"},{"$f":"'Subventions 2017'!H1","v":"Sub 2016"},{"$f":"'Subventions 2017'!I1","v":"Demande 2017"},{"$f":"'Subventions 2017'!J1","v":"Solde de banque ass. locales"},{"$f":"'Subventions 2017'!K1","v":"Solde de banque ass. extérieures"},{"$f":"'Subventions 2017'!L1","v":"Proposition 2017"},{"$f":"'Subventions 2017'!M1","v":"Avis de la Commision"},{"$f":"'Subventions 2017'!N1","v":"Total adhérents"},{"$f":"'Subventions 2017'!O1","v":"Adhérents Ville"}]

{"sheet":"Feuil2","index":5,"n_rows":3,"n_cols":1,"rows_kept":3,"cut":false,"hidden":false,"merged":[]}
["Associations subventionnées en 2016 avec demande 2017"]
["Associations subventionnées en 2016 sans demande 2017"]
["Nouvelles demandes 2017"]